fUSD/lending_fUSD_20251027
["ID","MTS","AMOUNT","RATE_DAILY","PERIOD"]
[392481225,1761547841172,-500.0,0.00039448,5]
[392481226,1761547841182,-1000.0,0.00039448,5]
[392481227,1761547841191,-507.85207779,0.00039448,2]
[392481228,1761547841202,-1005.34935026,0.00039531,2]
[392481229,1761547841212,-864.98136198,0.00039652,2]
[392481230,1761547841222,-833.32,0.00039675,30]
[392481231,1761547841231,-500.0,0.00039681,7]
[392481232,1761547841240,-500.0,0.00039681,7]
[392481233,1761547841250,-500.0,0.00039681,7]
[392481234,1761547841259,-2671.0,0.00039795,2]
[392481235,1761547841268,-1500.0,0.00039846,5]
[392481236,1761547841277,-191.0,0.00039861,120]
[392481237,1761547841287,-504.0,0.00039902,2]
[392481238,1761547841296,-9964.06588621,0.00039943,15]
[392481239,1761547841305,-833.32,0.00039949,30]
[392481240,1761547841315,-864.98136198,0.00039992,2]
[392481241,1761547841324,-500.0,0.00039996,5]
[392481242,1761547841334,-998.62163948,0.00039996,5]
[392481243,1761547841343,-500.0,0.0004,30]
[392481244,1761547841353,-518.50524961,0.0004,30]
[392481245,1761547841362,-250.0,0.0004,7]
[392481246,1761547841372,-501.02099489,0.00040049,120]
[392481247,1761547841383,-684.0,0.0004016,7]
[392481248,1761547841393,-150.0,0.00040186,7]
[392481249,1761547841402,-833.32,0.00040223,30]
[392481250,1761547841411,-176.50523317,0.0004026,31]
[392481251,1761547841421,-548.03849051,0.0004026,31]
[392481252,1761547841430,-178.70856142,0.0004026,31]
[392481253,1761547841439,-864.98136198,0.00040261,2]
[392481254,1761547841448,-864.98136198,0.00040316,2]
[392481255,1761547841457,-150.0,0.00040337,7]
[392481256,1761547841467,-152.0,0.00040385,4]
[392481257,1761547841477,-500.0,0.00040394,5]
[392481258,1761547841486,-833.38,0.00040497,30]
[392481259,1761547841500,-500.0,0.00040503,7]
[392481260,1761547841509,-500.0,0.00040503,7]
[392481261,1761547841518,-500.0,0.00040503,7]
[392481262,1761547841528,-191.0,0.00040514,2]
[392481263,1761547841542,-9964.06588621,0.00040637,15]
[392481264,1761547841551,-191.0,0.00040645,7]
[392481265,1761547841560,-689.76,0.00040697,2]
[392481266,1761547841570,-864.98136198,0.00040706,2]
[392481267,1761547841581,-864.98136198,0.0004094,2]
[392481268,1761547841590,-250.0,0.00041,7]
[392481269,1761547841600,-150.0,0.00041041,2]
[392481270,1761547841609,-500.0,0.00041096,120]
[392481271,1761547841619,-447.22293315,0.000411,2]
[392481272,1761547841629,-292.28,0.00041139,2]
[392481273,1761547841638,-400.0,0.00041151,5]
[392481274,1761547841648,-434.0,0.00041151,5]
[392481275,1761547841657,-87205.4559315,0.00041244,2]
[392481276,1761547841668,-500.0,0.00041325,7]
[392481277,1761547841677,-500.0,0.00041325,7]
[392481278,1761547841687,-500.0,0.00041325,7]
[392481279,1761547841697,-9964.06588621,0.00041331,15]
[392481280,1761547841706,-864.98136198,0.00041362,2]
[392481281,1761547841715,-500.0,0.0004137,120]
[392481282,1761547841725,-864.98136198,0.00041411,2]
[392481283,1761547841734,-1656.71416869,0.0004157,15]
[392481284,1761547841744,-1071.83942777,0.0004157,13]
[392481285,1761547841753,-1000.0,0.0004157,2]
[392481286,1761547841762,-1000.0,0.0004157,2]
[392481287,1761547841772,-165.14074576,0.00041573,15]
[392481288,1761547841782,-1000.0,0.00041643,120]
[392481289,1761547841791,-500.0,0.00041644,120]
[392481290,1761547841800,-233.99,0.0004165,2]
[392481291,1761547841810,-3191.56818,0.0004166,10]
[392481292,1761547841819,-54480.9908982,0.0004166,3]
[392481293,1761547841827,-233.99,0.0004166,2]
[392481294,1761547841837,-163.15,0.0004166,2]
[392481295,1761547841847,-43605.46856181,0.0004167,2]
[392481296,1761547841856,-36675.9231242,0.0004167,2]
[392481297,1761547842311,-1.6e-07,0.0004167,2]
[392481298,1761547842408,-880.56749864,0.0004167,2]
[392481310,1761547843167,-368.2800749,0.000411,2]
[392481311,1761547843385,-796.58852747,0.000411,2]
[392481312,1761547843395,-10969.84984935,0.0004167,2]
[392481322,1761547846504,-233.9129,0.00038572,2]
[392481323,1761547846514,-17129.61460132,0.0004167,2]
[392481324,1761547846523,-503.9866007,0.00041673,10]
[392481325,1761547846534,-503.83020433,0.00041673,10]
[392481326,1761547846547,-22.86446981,0.00041673,10]
[392481327,1761547846560,-480.24667972,0.00041673,10]
[392481328,1761547846570,-500.0,0.00041673,10]
[392481329,1761547846579,-500.0,0.00041673,10]
[392481330,1761547846589,-500.0,0.00041673,10]
[392481331,1761547846600,-500.0,0.00041673,10]
[392481332,1761547846609,-500.0,0.00041673,10]
[392481333,1761547846620,-503.25119212,0.00041673,10]
[392481334,1761547846630,-160.37518135,0.00041673,2]
[392481335,1761547846641,-460.05933715,0.00041673,10]
[392481336,1761547846650,-501.66973597,0.00041673,10]
[392481337,1761547846659,-200.0,0.00041673,10]
[392481338,1761547846668,-0.09787369,0.00041673,10]
[392481339,1761547846679,-350.28314396,0.00041673,10]
[392481344,1761547878076,894.0,0.00038859,50]
[392481424,1761547988041,195.0,0.00030875,120]
[392481457,1761548046181,195.0,0.00029752,120]
[392481458,1761548151237,152.67,0.00013699,2]
[392481461,1761548197214,-152.67,0.00020548,2]
[392481462,1761548197238,-26.1755998,0.000206,2]
[392481463,1761548199424,-196.56359566,0.000206,2]
[392481464,1761548201564,-322.5282868,0.000206,2]
[392481466,1761548264330,-24.32340991,0.000206,2]
[392481467,1761548285154,588.81828798,0.00030137,120]
[392481472,1761548406836,5000.0,0.00030137,120]
[392481482,1761548413749,195.0,0.00030137,120]
[392481483,1761548413854,195.0,0.00028212,120]
[392481484,1761548465219,195.0,0.00030137,120]
[392481485,1761548539992,7597.11835515,0.00031,120]
[392481486,1761548606009,1027.90960913,0.00038865,120]
[392481487,1761548641179,178.36197011,0.00038865,120]
[392481489,1761548751103,-152.67,0.00027397,2]
[392481490,1761548751126,-106.67721989,0.00028212,2]
[392481491,1761548830122,-150.0,0.00029022,2]
[392481492,1761548830142,-77.79763558,0.00029022,2]
[392481493,1761548847086,-72.20236442,0.00029022,2]
[392481494,1761548847108,-201.42578203,0.00031668,2]
[392481495,1761548894831,-383.00177797,0.00031668,2]
[392481496,1761548894864,-258.58027683,0.00031827,2]
[392481497,1761548894897,-393.32278011,0.00031924,2]
[392481498,1761548894931,-170.43884505,0.00032832,2]
[392481499,1761548894967,-152.67,0.00034247,2]
[392481500,1761548894987,-383.00177797,0.00034483,3]
[392481501,1761548894999,-258.58027683,0.00034483,3]
[392481502,1761548895011,-393.32278011,0.00034483,3]
[392481503,1761548895023,-170.43884505,0.00034483,3]
[392481504,1761548895035,-152.67,0.00034483,3]
[392481505,1761548895048,-241.98632004,0.00034483,3]
[392481506,1761548895058,-154.3,0.00034535,2]
[392481507,1761548895067,-87.68632004,0.00036267,2]
[392481508,1761548964080,-170.43884505,0.00032832,2]
[392481509,1761548964100,-94.87367996,0.00036267,2]
[392481510,1761548964122,-197.85797579,0.00037063,3]
[392481518,1761549032291,-170.43884506,0.00032832,2]
[392481519,1761549032301,-200.0,0.00037021,30]
[392481520,1761549032311,-180.55960279,0.00037021,30]
[392481521,1761549032323,-119.44039721,0.00037021,30]
[392481522,1761549032333,-187.44057535,0.00037021,30]
[392481523,1761549032424,-12.55942465,0.00037021,30]
[392481524,1761549032435,-591.0,0.00037066,3]
[392481525,1761549032444,-301.0,0.00037299,3]
[392481526,1761549032454,-400.0,0.00037299,3]
[392481527,1761549032464,-1000.0,0.000373,2]
[392481528,1761549032473,-2581.14036614,0.000376,2]
[392481529,1761549032485,-4344.16748859,0.000376,2]
[392481530,1761549032543,-3074.69214527,0.000376,2]
[392481531,1761549032552,-1600.0,0.00037872,3]
[392481532,1761549032563,-400.0,0.00037872,3]
[392481533,1761549032574,-150.99,0.00037873,2]
[392481534,1761549032584,-1057.86,0.00037873,2]
[392481535,1761549032594,-9999.99,0.00037873,2]
[392481536,1761549032604,-150.0,0.00038145,4]
[392481537,1761549032613,-150.0,0.00038145,4]
[392481538,1761549032622,-150.0,0.00038145,4]
[392481539,1761549032632,-150.0,0.00038145,4]
[392481540,1761549032641,-150.0,0.00038145,4]
[392481541,1761549032650,-150.0,0.00038145,4]
[392481542,1761549032659,-150.00000001,0.00038145,4]
[392481544,1761549032668,-150.0,0.00038145,4]
[392481546,1761549032678,-150.0,0.00038145,4]
[392481547,1761549032688,-234.92925555,0.00038145,4]
[392481548,1761549032697,-500.0,0.0003842,5]
[392481549,1761549032707,-500.0,0.0003842,5]
[392481550,1761549032716,-507.85207779,0.0003842,2]
[392481551,1761549032726,-502.62455085,0.0003842,5]
[392481552,1761549032735,-500.0,0.0003842,5]
[392481553,1761549032745,-509.4272848,0.0003842,5]
[392481554,1761549032755,-500.0,0.00038439,30]
[392481555,1761549032764,-151.0,0.00038439,2]
[392481556,1761549032774,-151.0,0.00038439,2]
[392481557,1761549032783,-151.0,0.00038439,2]
[392481558,1761549032793,-151.0,0.00038439,2]
[392481561,1761549032802,-151.0,0.00038439,2]
[392481562,1761549032824,-151.0,0.00038439,2]
[392481564,1761549032833,-151.0,0.00038439,2]
[392481565,1761549032843,-151.0,0.00038439,2]
[392481566,1761549032853,-151.0,0.00038439,2]
[392481568,1761549032862,-151.0,0.00038439,2]
[392481569,1761549032872,-151.0,0.00038439,2]
[392481570,1761549032882,-151.0,0.00038439,2]
[392481571,1761549032892,-151.0,0.00038439,2]
[392481572,1761549032904,-151.0,0.00038439,2]
[392481573,1761549032915,-151.0,0.00038439,2]
[392481574,1761549032924,-151.0,0.00038439,2]
[392481575,1761549032934,-151.0,0.00038439,2]
[392481576,1761549032943,-151.0,0.00038439,2]
[392481577,1761549032952,-151.0,0.00038439,2]
[392481578,1761549032962,-151.0,0.00038439,2]
[392481579,1761549032974,-151.0,0.00038439,2]
[392481580,1761549032983,-151.0,0.00038439,2]
[392481581,1761549032993,-151.0,0.00038439,2]
[392481582,1761549033003,-151.0,0.00038439,2]
[392481583,1761549033012,-151.0,0.00038439,2]
[392481584,1761549033022,-171.026,0.00038461,51]
[392481585,1761549033031,-22998.85,0.00038462,2]
[392481586,1761549033042,-1000.0,0.000385,2]
[392481587,1761549033051,-210.41602144,0.00038553,120]
[392481588,1761549033060,-500.0,0.00038713,30]
[392481589,1761549033070,-3098.39,0.00038742,2]
[392481590,1761549033079,-250.0,0.00038742,2]
[392481591,1761549033092,-482.24,0.00038838,2]
[392481592,1761549033102,-154.0,0.00038933,30]
[392481593,1761549033112,-171.22,0.00038966,2]
[392481594,1761549033121,-1000.0,0.00038968,5]
[392481595,1761549033132,-1000.0,0.00038968,5]
[392481596,1761549033141,-500.0,0.00038987,30]
[392481597,1761549033150,-1000.0,0.00038988,2]
[392481598,1761549033161,-824.82767158,0.0003902,2]
[392481599,1761549033171,-345.39,0.00039034,2]
[392481600,1761549033184,-2755.63,0.00039036,7]
[392481601,1761549033194,-271.6,0.00039104,2]
[392481602,1761549033204,-1000.0,0.00039223,2]
[392481603,1761549033213,-500.0,0.00039261,30]
[392481604,1761549033222,-824.82767158,0.00039282,2]
[392481605,1761549033232,-303.98,0.00039296,2]
[392481606,1761549033241,-1500.0,0.00039516,5]
[392481607,1761549033251,-1500.0,0.00039516,5]
[392481608,1761549033260,-500.02,0.00039535,30]
[392481609,1761549033269,-824.82767158,0.00039556,2]
[392481610,1761549033279,-9996.7,0.00039607,2]
[392481611,1761549033288,-824.82767158,0.00039895,2]
[392481612,1761549033298,-200.0,0.00039898,5]
[392481613,1761549033308,-500.0,0.0004,30]
[392481614,1761549033318,-518.50524961,0.0004,30]
[392481615,1761549033328,-307.53314374,0.0004,10]
[392481616,1761549033337,-503.0,0.00040021,120]
[392481617,1761549033346,-1259.18895395,0.00040049,120]
[392481618,1761549033356,-824.82767158,0.00040182,2]
[392481619,1761549033370,-9049.52,0.00040228,2]
[392481620,1761549033381,-824.82767158,0.00040363,2]
[392481621,1761549033390,-213.53,0.00040405,2]
[392481622,1761549033401,-999.0,0.00040525,3]
[392481623,1761549033411,-1862.11,0.0004055,2]
[392481624,1761549033422,-584.0,0.0004064,5]
[392481625,1761549033432,-200.0,0.0004074,2]
[392481626,1761549033442,-824.82767158,0.00040774,2]
[392481627,1761549033451,-1000.0,0.0004089,30]
[392481628,1761549033461,-1097.54319889,0.0004089,30]
[392481629,1761549033470,-220.0,0.00040893,2]
[392481630,1761549033480,-4063.5368,0.000409,2]
[392481631,1761549033489,-150.0,0.00040956,2]
[392481632,1761549033499,-168.0,0.00040969,2]
[392481633,1761549033509,-824.82767158,0.00040979,2]
[392481634,1761549033519,-233.79064187,0.00040999,31]
[392481635,1761549033530,-176.50523317,0.00040999,31]
[392481636,1761549033540,-500.0,0.00040999,31]
[392481637,1761549033561,-259.58291093,0.00040999,31]
[392481638,1761549033581,-13292.32211238,0.00041,7]
[392481639,1761549033593,-162.0,0.00041,60]
[392481640,1761549033607,-163.26,0.00041,60]
[392481641,1761549033620,-697.12,0.00041014,2]
[392481642,1761549033631,-476.05,0.00041014,2]
[392481643,1761549033643,-697.12,0.00041014,2]
[392481644,1761549033656,-476.05,0.00041014,2]
[392481645,1761549033669,-697.12,0.00041014,2]
[392481646,1761549033680,-697.12,0.00041014,2]
[392481647,1761549033692,-476.05,0.00041014,2]
[392481648,1761549033703,-476.05,0.00041014,2]
[392481649,1761549033715,-697.12,0.00041014,2]
[392481650,1761549033727,-697.12,0.00041014,2]
[392481651,1761549033739,-476.05,0.00041014,2]
[392481652,1761549033753,-476.05,0.00041014,2]
[392481653,1761549033765,-951.18,0.00041014,2]
[392481654,1761549033777,-1393.58,0.00041014,2]
[392481655,1761549033789,-697.12,0.00041014,2]
[392481656,1761549033800,-637.91,0.00041014,2]
[392481657,1761549033810,-476.05,0.00041014,2]
[392481658,1761549033821,-476.05,0.00041014,2]
[392481659,1761549033833,-504.0,0.00041021,120]
[392481660,1761549033845,-1387.84,0.00041023,2]
[392481661,1761549033859,-152.67,0.00041096,2]
[392481662,1761549033870,-301.02724609,0.00041096,120]
[392481663,1761549033882,-513.22200868,0.000411,2]
[392481664,1761549033894,-252.0,0.00041135,7]
[392481665,1761549033905,-95436.9956252,0.00041243,2]
[392481666,1761549033916,-175.5,0.0004125,2]
[392481667,1761549033929,-80281.39168601,0.0004126,2]
[392481668,1761549033940,-551.36617,0.0004126,8]
[392481669,1761549033952,-500.0,0.00041273,10]
[392481670,1761549033963,-513.8116029,0.00041273,10]
[392481671,1761549033974,-500.0,0.00041273,10]
[392481672,1761549033985,-500.0,0.00041273,10]
[392481673,1761549033998,-500.0,0.00041273,10]
[392481674,1761549034009,-500.0,0.00041273,10]
[392481675,1761549034022,-500.0,0.00041273,10]
[392481676,1761549034034,-306.97340884,0.00041273,10]
[392481677,1761549034050,-228.01570823,0.00041273,10]
[392481678,1761549034063,-500.0,0.00041273,10]
[392481679,1761549034076,-525.11752755,0.00041273,10]
[392481680,1761549034088,-500.0,0.00041273,10]
[392481681,1761549034100,-500.0,0.00041273,10]
[392481682,1761549034112,-204.24716476,0.00041273,10]
[392481683,1761549034123,-500.0,0.00041273,10]
[392481684,1761549034138,-266.0,0.00041312,2]
[392481685,1761549034155,-824.82767158,0.00041318,2]
[392481686,1761549034169,-824.82767161,0.00041375,2]
[392481687,1761549034183,-7614.18978363,0.00041434,15]
[392481688,1761549034195,-551.36617,0.0004149,9]
[392481689,1761549034207,-500.0,0.0004151,2]
[392481690,1761549034217,-189.85705085,0.00041511,30]
[392481691,1761549034229,-5967.77693506,0.00041511,2]
[392481692,1761549034285,-4763.01368576,0.00041511,2]
[392481693,1761549034302,-716.26569835,0.00041511,2]
[392481694,1761549034317,-2080.17468118,0.00041511,2]
[392481695,1761549034334,-5330.38983742,0.00041511,2]
[392481696,1761549034346,-1006.71433122,0.00041511,2]
[392481701,1761549038388,-25.31084832,0.00037872,15]
[392481702,1761549038402,-474.68915168,0.00037872,15]
[392481703,1761549038413,-500.0,0.00037872,15]
[392481704,1761549038424,-500.0,0.00037872,15]
[392481705,1761549038435,-500.0,0.00037872,15]
[392481706,1761549038447,-500.0,0.00037872,15]
[392481707,1761549038458,-500.0,0.00037872,15]
[392481708,1761549038468,-258.69880865,0.00037872,15]
[392481709,1761549038479,-176.26057403,0.000384,2]
[392481710,1761549038491,-785.08308721,0.00041511,2]
[392481711,1761549038503,-19005.26837843,0.00041511,2]
[392481712,1761549038576,-2161.88985787,0.00041511,2]
[392481713,1761549038587,-1000.0,0.0004157,2]
[392481714,1761549038598,-500.0,0.00041598,7]
[392481715,1761549038610,-500.0,0.00041598,7]
[392481716,1761549038621,-500.0,0.00041598,7]
[392481717,1761549038631,-510.117515,0.00041631,2]
[392481718,1761549038642,-1000.0,0.00041643,120]
[392481719,1761549038653,-181.63568682,0.00041659,3]
[392481720,1761549038664,-500.0,0.00041672,28]
[392481721,1761549038674,-400.0,0.00041672,10]
[392481722,1761549038685,-434.05035193,0.00041672,10]
[392481723,1761549038695,-156.31379818,0.00041672,10]
[392481724,1761549038708,-500.0,0.00041672,10]
[392481725,1761549038720,-587.5176918,0.00041672,10]
[392481726,1761549038732,-644.94362696,0.00041672,10]
[392481727,1761549038745,-151.0,0.00041672,10]
[392481728,1761549038755,-151.0,0.00041672,10]
[392481729,1761549038765,-151.0,0.00041672,10]
[392481730,1761549038775,-151.0,0.00041672,10]
[392481731,1761549038785,-151.0,0.00041672,10]
[392481732,1761549038945,-151.0,0.00041672,10]
[392481733,1761549038957,-151.0,0.00041672,10]
[392481734,1761549038967,-151.0,0.00041672,10]
[392481735,1761549038977,-151.0,0.00041672,10]
[392481736,1761549038986,-151.0,0.00041672,10]
[392481737,1761549038995,-151.0,0.00041672,10]
[392481738,1761549039004,-691.39774486,0.00041672,10]
[392481739,1761549039014,-542.63827293,0.00041672,10]
[392481740,1761549039023,-380.76960626,0.00041673,10]
[392481741,1761549039032,-340.0,0.00041673,30]
[392481742,1761549039042,-200.0,0.00041673,7]
[392481743,1761549039052,-191.39154758,0.00041673,2]
[392481744,1761549039061,-919.34127635,0.00041673,2]
[392481745,1761549039073,-551.36617,0.00041673,10]
[392481746,1761549039082,-335.0,0.00041673,10]
[392481747,1761549039097,-1228.85552713,0.0004172,14]
[392481748,1761549039107,-354.42187922,0.0004172,28]
[392481749,1761549039118,-2171.581289,0.0004172,15]
[392481750,1761549039130,-551.36617,0.0004174,10]
[392481751,1761549039140,-303.22435939,0.00041756,2]
[392481752,1761549039150,-175.5,0.00041798,2]
[392481753,1761549039160,-163.15,0.00041798,2]
[392481754,1761549039172,-200.0,0.000418,15]
[392481755,1761549039182,-1606.30307397,0.000418,17]
[392481756,1761549039192,-175.5,0.00041808,2]
[392481757,1761549039201,-703.6640666,0.00041808,3]
[392481761,1761549040389,-176.26057402,0.00039775,2]
[392481762,1761549040400,-988.73942598,0.00041808,3]
[392481763,1761549040707,-3754.20101155,0.00041808,3]
[392481764,1761549040719,-967.28270343,0.00041808,3]
[392481765,1761549040746,-459.67063818,0.00041808,2]
[392481766,1761549040755,-191.39154758,0.00041808,2]
[392481767,1761549040765,-28355.81522934,0.00041808,3]
[392481768,1761549040776,-10521.70047,0.00041808,3]
[392481769,1761549040835,-3.46630218,0.00041808,3]
[392481782,1761549043474,-28.81635788,0.00041808,2]
[392481783,1761549043782,-201.01896121,0.00041808,2]
[392481784,1761549043791,-1635.90655203,0.00041808,3]
[392481833,1761549046359,-61.73090202,0.0004115,2]
[392481890,1761549162448,522.0,0.00031507,120]
[392481891,1761549202199,-387.00128608,0.00024932,2]
[392481895,1761549908095,6213.20874288,0.00015,2]
[392481896,1761549908120,6213.20874288,0.00015,2]
[392481897,1761549908145,6213.20874288,0.00015,2]
[392481898,1761549908169,6213.20874288,0.00015,2]
[392481899,1761549908194,6188.88533297,0.00015,2]
[392481900,1761549908218,6213.20874288,0.00015,2]
[392481901,1761549908404,6213.20874288,0.00015,2]
[392481902,1761549908430,6213.20874288,0.00015,2]
[392481903,1761549908453,6213.20874288,0.00015,2]
[392481904,1761549908477,6213.20874288,0.00015,2]
[392481905,1761549908502,88741.93598111,0.00015,2]
[392481913,1761550018084,24239.70497897,0.000162,5]
[392481914,1761550018116,47996.18177249,0.000162,5]
[392481915,1761550057198,-216.96769124,0.00027661,2]
[392481916,1761550060863,-255.73950642,0.00027661,2]
[392481917,1761550064859,-164.05010272,0.00027661,2]
[392481918,1761550070230,-170.81251661,0.00027661,2]
[392481919,1761550073903,2864.00542275,0.00018,2]
[392481920,1761550075017,-530.4902505,0.000215,2]
[392481921,1761550077807,-464.75535796,0.000215,2]
[392481923,1761550079264,-301.70172265,0.000215,2]
[392481924,1761550080809,-323.54188956,0.000215,2]
[392481925,1761550085060,-312.61386641,0.000215,2]
[392481926,1761550102403,-318.17892392,0.000215,2]
[392481927,1761550105035,-275.0589271,0.000215,2]
[392481928,1761550109237,-181.68675171,0.000215,2]
[392481929,1761550111051,-245.11332243,0.000215,2]
[392481930,1761550112614,-215.70141527,0.000215,2]
[392481932,1761550117423,-322.43822166,0.000215,2]
[392481933,1761550119017,-187.06695935,0.000215,2]
[392481934,1761550120476,-464.1740371,0.000215,2]
[392481936,1761550121916,-156.65877296,0.000215,2]
[392481937,1761550122809,3985.95540216,0.0002,2]
[392481941,1761550124847,-232.02522468,0.0002,2]
[392481942,1761550127879,-191.14000016,0.0002,2]
[392481943,1761550147252,-260.62045928,0.000199,2]
[392481944,1761550149686,-1120.42171272,0.000199,2]
[392481945,1761550149707,-22635.10288019,0.0002,2]
[392481946,1761550149983,-165.98668469,0.0002,2]
[392481947,1761550151119,-231.95257519,0.0002,2]
[392481948,1761550151139,-7587.93487245,0.000215,2]
[392481949,1761550152640,-215.0815976,0.000215,2]
[392481950,1761550154135,-3913.21579474,0.000215,2]
[392481951,1761550158068,-183.89438937,0.000215,2]
[392481952,1761550158090,-86.11237129,0.00022,2]
[392481953,1761550159814,-74.85762871,0.00022,2]
[392481954,1761550159840,-85.56851833,0.00025,15]
[392481955,1761550160098,-10971.50396082,0.00025,15]
[392481956,1761550160118,-269.33695938,0.000278,2]
[392481957,1761550160137,-166.66666666,0.000279,2]
[392481958,1761550160159,-1000.0,0.00027999,2]
[392481959,1761550160183,-500.0,0.00027999,2]
[392481960,1761550160210,-500.0,0.00027999,2]
[392481961,1761550160235,-399.02653429,0.00027999,2]
[392481962,1761550160256,-457.0,0.00027999,2]
[392481963,1761550160275,-237.81726645,0.00027999,2]
[392481964,1761550160296,-195.95263116,0.00027999,2]
[392481965,1761550160317,-407.20596106,0.00027999,2]
[392481966,1761550160337,-500.0,0.00027999,2]
[392481967,1761550160356,-384.44882869,0.00027999,2]
[392481968,1761550160375,-185.02764052,0.00027999,2]
[392481969,1761550160399,-304.51436638,0.00027999,2]
[392481970,1761550160419,-7327.88561996,0.00028,2]
[392481971,1761550160440,-12335.35206463,0.00028,2]
[392481972,1761550192391,-183.59944995,0.00027999,2]
[392481976,1761550197486,-266.42942173,0.00027999,2]
[392481977,1761550197514,-142.2675509,0.00027999,2]
[392481978,1761550200379,-53.21808272,0.00027999,2]
[392481979,1761550200403,-159.5267533,0.00028,2]
[392481980,1761550205281,-182.50114052,0.00027999,2]
[392481981,1761550207054,-117.49885948,0.00027999,2]
[392481982,1761550207078,-61.55283948,0.00027999,2]
[392481983,1761550213561,-88.44716052,0.00027999,2]
[392481984,1761550213585,-103.79763483,0.00027999,2]
[392481985,1761550216620,-136.99672636,0.00027999,2]
[392481986,1761550216649,-122.6668311,0.00027999,2]
[392481987,1761550222730,-245.2372681,0.00027999,2]
[392481988,1761550225122,-189.15701469,0.00027999,2]
[392481998,1761550231547,-7.18578352,0.00027999,2]
[392482001,1761550231581,-346.57837977,0.00027999,2]
[392482002,1761550231650,-73.74166655,0.00027999,2]
[392482003,1761550231664,-500.0,0.00027999,2]
[392482004,1761550231677,-260.47119166,0.00027999,2]
[392482005,1761550231690,-75625.44941955,0.00028,2]
[392482006,1761550231702,-437.23689368,0.00028,2]
[392482007,1761550231715,-30593.11527026,0.00028,2]
[392482008,1761550231729,-160.0,0.00028,2]
[392482009,1761550231742,-241.62464801,0.000286,5]
[392482010,1761550231755,-429.61878183,0.000286,5]
[392482011,1761550231768,-500.0,0.000286,2]
[392482012,1761550231780,-500.0,0.000286,5]
[392482013,1761550231792,-500.0,0.000286,5]
[392482014,1761550231803,-574.76590107,0.000286,2]
[392482015,1761550231813,-618.12085243,0.000286,5]
[392482016,1761550231826,-500.0,0.000286,5]
[392482017,1761550231842,-269.33695936,0.00028649,2]
[392482018,1761550231854,-13107.00636607,0.0002875,2]
[392482019,1761550231869,-1000.0,0.00029148,2]
[392482020,1761550231884,-1000.0,0.00029148,5]
[392482022,1761550231897,-269.33695936,0.00029498,2]
[392482023,1761550231911,-150.0,0.00029598,2]
[392482025,1761550231923,-505.34935026,0.00029696,2]
[392482027,1761550231934,-998.62163948,0.00029696,5]
[392482030,1761550231947,-162.32178728,0.00032,120]
[392482032,1761550231959,-3862.15455807,0.00032,2]
[392482035,1761550231973,-6361.02774914,0.00032,2]
[392482037,1761550231984,-162.32178728,0.00033,120]
[392482039,1761550231996,-162.32178728,0.000339,120]
[392482041,1761550232009,-500.0,0.00036167,2]
[392482044,1761550232021,-1000.0,0.00037,50]
[392482046,1761550232033,-1000.0,0.00037,50]
[392482048,1761550232045,-1000.0,0.00037,50]
[392482050,1761550232055,-752.03287479,0.00037,30]
[392482053,1761550232068,-500.0,0.00037021,2]
[392482055,1761550232079,-500.0,0.00037021,2]
[392482057,1761550232090,-200.0,0.00037021,30]
[392482059,1761550232102,-300.0,0.00037021,30]
[392482061,1761550232114,-200.0,0.00037021,30]
[392482064,1761550232127,-10648.40696014,0.00037021,2]
[392482066,1761550232138,-764.97,0.00037151,120]
[392482068,1761550232148,-500.0,0.00037432,2]